bitfinex-derivatives/quotes_SOLF0:USTF0_20240815
["timestamp","ask_amount","ask_price","bid_price","bid_amount"]
[1723703455551,0.0472902,142.15,142.12,0.04788162]
[1723703455852,0.0472902,142.15,142.12,3.52730476]
[1723703456041,0.0472902,142.15,142.12,0.04788162]
[1723703456545,0.0472902,142.15,142.12,3.47770926]
[1723703460750,0.0472902,142.15,142.12,0.04788162]
[1723703461253,27.01,142.14,142.12,0.04788162]
[1723703461851,27.01,142.13,142.04,2.5362]
[1723703462046,5.64,142.12,142.04,2.5362]
[1723703462650,9.1579,142.12,142.04,2.5362]
[1723703462850,5.64,142.12,142.05,27.01]
[1723703463356,0.04747485,142.09,142.07,0.04703769]
[1723703469058,0.04747485,142.09,141.99,1.2563]
[1723703469059,27.01,142.08,141.99,1.2563]
[1723703469268,5.56,142.07,141.99,1.2563]
[1723703469453,5.56,142.07,141.99,4.82058566]
[1723703469653,5.56,142.07,141.99,1.2563]
[1723703470059,27.01,142.04,141.96,27.01]
[1723703470264,27.0622741,142.04,142.02,0.05299107]
[1723703470459,30.5821741,142.04,141.96,27.01]
[1723703470661,30.5821741,142.04,141.97,3.49743331]
[1723703470861,30.5821741,142.04,142.02,0.05052605]
[1723703471053,3.5201,142.03,141.93,1.2563]
[1723703471259,27.0622741,142.04,142.02,0.05188618]
[1723703471456,27.0622741,142.04,141.93,28.2663]
[1723703471457,5.56,142.03,141.93,28.2663]
[1723703471658,27.01,142.02,141.93,31.81881109]
[1723703471862,27.01,142.02,141.93,28.2663]
[1723703472060,27.01,142.02,141.91,27.01]
[1723703472061,27.01,142.0,141.91,27.01]
[1723703472260,3.5213,141.98,141.93,3.5224]
[1723703472456,9.0813,141.98,141.93,3.5224]
[1723703472866,0.04861791,141.97,141.94,0.04706835]
[1723703473566,0.04861791,141.97,141.94,3.56936835]
[1723703473868,5.56,142.03,141.95,27.01]
[1723703474169,3.5202,142.03,141.98,3.5213]
[1723703474765,5.56,142.06,141.99,3.521]
[1723703474959,2.6361,142.07,141.99,27.01]
[1723703475262,27.01,142.09,142.01,27.05477087]
[1723703475263,0.04676805,142.04,142.01,27.05477087]
[1723703476577,0.04676805,142.04,142.02,3.5203]
[1723703477068,0.04676805,142.04,142.01,27.05477087]
[1723703477269,0.04676805,142.04,142.01,0.04477087]
[1723703478165,0.04676805,142.04,142.01,3.56517087]
[1723703478665,0.04676805,142.04,142.02,3.5201]
[1723703478864,0.04676805,142.04,142.01,27.05477087]
[1723703479069,0.04676805,142.04,142.03,27.01]
[1723703479370,0.04676805,142.04,142.03,30.5301]
[1723703480066,0.04676805,142.04,142.03,27.01]
[1723703480371,0.04676805,142.04,142.01,0.04477087]
[1723703481066,3.56676805,142.04,142.01,0.04477087]
[1723703481268,0.04676805,142.04,142.01,0.04477087]
[1723703481663,3.5202,142.03,142.01,0.04477087]
[1723703481969,0.04676805,142.04,142.01,0.04477087]
[1723703482172,3.5203,142.03,142.01,0.04477087]
[1723703482666,0.04676805,142.04,142.01,0.04477087]
[1723703485375,3.5202,142.03,142.01,0.04477087]
[1723703485673,3.521,142.0,141.95,3.522]
[1723703485969,27.01,142.01,141.91,32.57]
[1723703486172,3.521,142.0,141.95,3.5219]
[1723703486776,27.01,142.01,141.93,3.58611463]
[1723703486976,27.0589356,141.99,141.96,0.04840844]
[1723703487770,30.5316,141.97,141.96,0.04840844]
[1723703487981,30.5316,141.97,141.89,27.01]
[1723703488771,30.5316,141.97,141.91,3.523]
[1723703489177,0.04967231,141.95,141.93,0.05046733]
[1723703493777,3.57177231,141.95,141.93,0.05046733]
[1723703494279,0.04967231,141.95,141.93,0.05046733]
[1723703495671,3.57177231,141.95,141.93,0.05046733]
[1723703496081,0.04967231,141.95,141.93,0.05046733]
[1723703503977,0.04967231,141.95,141.93,27.06046733]
[1723703504182,0.04967231,141.95,141.93,32.58046733]
[1723703504583,0.04967231,141.95,141.94,3.5223]
[1723703505285,6.8127,142.04,141.98,3.5212]
[1723703505486,6.8127,142.04,141.96,27.01]
[1723703505876,3.5205,142.02,141.97,3.5214]
[1723703506489,0.05134272,142.01,141.98,0.046809]
[1723703507987,0.05134272,142.01,141.99,3.5211]
[1723703508287,0.05134272,142.01,141.98,0.046809]
[1723703508589,0.05134272,142.01,141.99,3.5211]
[1723703508782,0.05134272,142.01,141.98,27.056809]
[1723703509892,0.05134272,142.01,141.99,3.5211]
[1723703510990,0.05134272,142.01,141.98,0.046809]
[1723703511985,3.57194272,142.01,141.98,0.046809]
[1723703512583,0.05134272,142.01,141.98,0.046809]
[1723703513991,27.06134272,142.01,141.98,0.046809]
[1723703514786,1.2856,142.0,141.98,0.046809]
[1723703515588,3.5211,141.99,141.98,0.046809]
[1723703516891,3.522,141.96,141.9,5.52]
[1723703517194,3.522,141.96,141.88,28.2716]
[1723703517195,3.522,141.96,141.89,5.52]
[1723703517394,3.522,141.96,141.91,3.523]
[1723703517584,3.5221,141.95,141.91,3.523]
[1723703518191,0.04673612,141.94,141.92,0.04662227]
[1723703518889,27.01,141.93,141.92,0.04662227]
[1723703519185,30.5326,141.93,141.92,0.04662227]
[1723703521190,27.01,141.93,141.85,8.1274]
[1723703521392,35.1782,141.93,141.85,2.6074]
[1723703521586,35.1782,141.93,141.89,3.5234]
[1723703521587,5.52,141.93,141.89,3.5234]
[1723703521789,32.53,141.95,141.85,29.6174]
[1723703521988,27.01,141.93,141.85,2.6074]
[1723703522396,27.01,141.93,141.88,0.05179107]
[1723703522397,0.04471366,141.9,141.88,0.05179107]
[1723703523990,27.01,141.97,141.88,0.05179107]
[1723703524188,32.53,141.99,141.89,27.01]
[1723703524988,3.5217,141.97,141.91,3.5229]
[1723703525188,0.05417032,141.95,141.89,27.01]
[1723703525392,0.05417032,141.95,141.92,0.05143385]
[1723703531402,3.57627032,141.95,141.92,0.05143385]
[1723703531603,0.05417032,141.95,141.92,0.05143385]
[1723703532994,27.01,141.94,141.92,0.05143385]
[1723703533205,31.69186038,141.94,141.85,3.5243]
[1723703533502,3.5233,141.9,141.85,3.5243]
[1723703534403,0.04668798,141.89,141.86,0.04992935]
[1723703535006,0.04668798,141.89,141.86,3.57412935]
[1723703535599,0.04668798,141.89,141.86,0.04992935]
[1723703536304,3.57028798,141.89,141.86,0.04992935]
[1723703536707,0.04668798,141.89,141.86,0.04992935]
[1723703537404,0.04668798,141.89,141.88,3.5238]
[1723703537608,0.04668798,141.89,141.86,0.04992935]
[1723703538108,0.04668798,141.89,141.86,3.57412935]
[1723703538506,0.04668798,141.89,141.86,0.04992935]
[1723703539009,3.57028798,141.89,141.86,0.04992935]
[1723703539401,0.04668798,141.89,141.86,0.04992935]
[1723703539599,27.01,141.87,141.86,0.04992935]
[1723703540205,30.534,141.87,141.86,0.04992935]
[1723703540408,27.01,141.87,141.86,0.04992935]
[1723703541001,3.524,141.88,141.86,0.04992935]
[1723703542013,3.524,141.87,141.86,0.04992935]
[1723703542499,4.8041,141.87,141.86,0.04992935]
[1723703543506,3.5244,141.86,141.82,3.5252]
[1723703543902,27.01,141.86,141.8,3.5257]
[1723703544304,27.01,141.86,141.76,27.01]
[1723703544305,28.338,141.86,141.76,27.01]
[1723703544700,28.338,141.86,141.79,3.5259]
[1723703545001,28.338,141.86,141.77,3.60969257]
[1723703545202,28.338,141.86,141.8,3.5256]
[1723703545397,0.04607723,141.82,141.8,3.57773498]
[1723703546112,0.04607723,141.82,141.8,0.05213498]
[1723703547404,3.526,141.8,141.72,5.4]
[1723703547607,27.01,141.8,141.7,29.6041]
[1723703547911,27.01,141.78,141.7,2.5941]
[1723703548415,30.5364,141.78,141.72,3.5276]
[1723703548709,27.01,141.78,141.68,28.2744]
[1723703548912,0.05286096,141.75,141.73,0.04938685]
[1723703549118,5.4,141.74,141.73,0.04938685]
[1723703549408,5.4,141.74,141.66,27.01]
[1723703549601,5.4,141.73,141.66,27.01]
[1723703549805,5.4,141.73,141.72,0.04562992]
[1723703550011,3.5271,141.75,141.66,27.01]
[1723703550315,0.0483359,141.71,141.69,3.5284]
[1723703550504,5.4,141.73,141.69,3.5284]
[1723703550710,0.04581493,141.71,141.69,3.57810284]
[1723703551319,0.04581493,141.71,141.69,0.04970284]
[1723703552519,0.04581493,141.71,141.69,3.57820284]
[1723703553022,0.04581493,141.71,141.69,0.04970284]
[1723703553219,0.04581493,141.71,141.7,3.5283]
[1723703554120,0.04581493,141.71,141.69,0.04970284]
[1723703554424,0.04581493,141.71,141.69,0.02970284]
[1723703554635,0.04581493,141.71,141.69,3.55800284]
[1723703554929,27.01,141.7,141.58,5.4]
[1723703555122,27.01,141.68,141.63,3.5298]
[1723703555319,27.01,141.68,141.6,1.2554]
[1723703555320,32.39,141.68,141.6,1.2554]
[1723703555821,27.01,141.67,141.59,1.2736]
[1723703556228,5.38,141.67,141.59,31.82921957]
[1723703556424,0.05326728,141.64,141.62,0.05272206]
[1723703556825,27.01,141.68,141.62,0.05272206]
[1723703557426,0.04665641,141.64,141.62,0.05272206]
[1723703561338,0.04665641,141.64,141.62,3.58282206]
[1723703561535,0.04665641,141.64,141.62,0.05272206]
[1723703562432,58.65652083,141.78,141.62,0.05272206]
[1723703562433,27.01,141.71,141.62,0.05272206]
[1723703562639,1.293,141.75,141.65,27.01]
[1723703562832,28.303,141.75,141.69,3.5284]
[1723703563034,31.8301,141.75,141.69,3.5284]
[1723703563540,31.8301,141.75,141.7,3.5283]
[1723703563541,28.303,141.75,141.7,3.5283]
[1723703564038,0.05116495,141.73,141.71,0.04990376]
[1723703564633,0.05116495,141.73,141.71,3.57780376]
[1723703564829,0.05116495,141.73,141.71,0.04990376]
[1723703565335,0.05116495,141.73,141.72,3.5278]
[1723703566132,563.0,141.88,141.79,3.5259]
[1723703566431,30.5347,141.85,141.79,3.5259]
[1723703567140,27.01,141.85,141.8,3.5257]
[1723703567538,27.01,141.85,141.78,5.38]
[1723703567742,0.04924872,141.83,141.8,3.57160014]
[1723703567937,0.04924872,141.83,141.8,0.04600014]
[1723703570943,33.85,141.82,141.8,0.04600014]
[1723703571532,0.04924872,141.83,141.8,0.04600014]
[1723703573043,33.85,141.82,141.65,28.22]
[1723703573339,33.85,141.82,141.7,33.85]
[1723703573543,33.85,141.82,141.67,5.17521379]
[1723703573544,33.85,141.8,141.68,33.85]
[1723703573847,33.85,141.78,141.71,3.5278]
[1723703574243,33.85,141.78,141.69,5.38]
[1723703574438,0.04594262,141.76,141.73,0.04536697]
[1723703574848,33.85,141.8,141.76,3.5267]
[1723703575048,37.3752,141.83,141.76,3.5267]
[1723703575644,0.04865389,141.81,141.76,3.5267]
[1723703575940,0.04865389,141.81,141.74,5.38]
[1723703575941,0.04865389,141.81,141.78,0.04558041]
[1723703576338,3.57445389,141.81,141.78,0.04558041]
[1723703577244,0.04865389,141.81,141.78,0.04558041]
[1723703579144,33.85,141.8,141.78,0.04558041]
[1723703579348,37.376,141.8,141.78,0.04558041]
[1723703580338,67.7,141.8,141.68,1.3299]
[1723703580644,67.7,141.8,141.67,1.3319]
[1723703580645,33.85,141.76,141.67,1.3319]
[1723703580851,33.85,141.76,141.61,28.2]
[1723703580852,33.85,141.74,141.62,36.5175]
[1723703581045,33.85,141.74,141.62,41.8975]
[1723703581046,33.85,141.71,141.62,41.8975]
[1723703581345,33.85,141.71,141.66,3.5292]
[1723703581546,33.85,141.71,141.62,8.0475]
[1723703581741,0.05282329,141.68,141.65,0.04937462]
[1723703582244,33.85,141.67,141.65,0.04937462]
[1723703583348,33.85,141.67,141.56,1.365]
[1723703583550,33.85,141.64,141.56,1.365]
[1723703584044,33.85,141.66,141.56,1.365]
[1723703584245,42.7594,141.66,141.59,3.5308]
[1723703584641,0.05225553,141.62,141.6,0.02470929]
[1723703585044,0.05225553,141.62,141.61,3.5305]
[1723703585247,0.05225553,141.62,141.6,0.02470929]
[1723703585644,0.05225553,141.62,141.61,3.5305]
[1723703586048,33.85,141.68,141.6,0.02470929]
[1723703586244,33.85,141.7,141.6,39.37]
[1723703586840,39.37,141.73,141.6,39.37]
[1723703587044,33.85,141.7,141.6,5.52]
[1723703587243,33.85,141.68,141.6,5.52]
[1723703587444,0.04645809,141.68,141.65,3.58379913]
[1723703587954,0.04645809,141.68,141.65,0.05429913]
[1723703588155,33.85,141.75,141.65,37.46462935]
[1723703588347,33.85,141.75,141.66,6.8022]
[1723703589146,33.85,141.75,141.7,3.5282]
[1723703589346,33.85,141.75,141.66,6.8022]
[1723703589552,33.85,141.72,141.69,0.0455335]
[1723703589756,0.05181115,141.72,141.69,0.0455335]
[1723703590256,0.05181115,141.72,141.67,3.529]
[1723703590646,33.90181115,141.72,141.64,2.6395]
[1723703591156,33.90181115,141.72,141.69,0.05034338]
[1723703592056,37.42961115,141.72,141.69,0.05034338]
[1723703592647,33.90181115,141.72,141.69,0.05034338]
[1723703593161,3.5282,141.71,141.69,0.05034338]
[1723703593349,33.90181115,141.72,141.69,0.05034338]
[1723703594151,37.42971115,141.72,141.69,0.05034338]
[1723703594355,33.90181115,141.72,141.69,0.05034338]
[1723703594559,3.5282,141.71,141.69,0.05034338]
[1723703594757,33.90181115,141.72,141.69,0.05034338]
[1723703595451,0.05181115,141.72,141.69,0.05034338]
[1723703596155,0.05181115,141.72,141.69,3.57884338]
[1723703596651,0.05181115,141.72,141.69,0.05034338]
[1723703597362,33.90181115,141.72,141.69,0.05034338]
[1723703598357,1.2864,141.71,141.69,0.05034338]
[1723703598561,3.5283,141.7,141.69,0.05034338]
[1723703598754,1.2864,141.71,141.69,0.05034338]
[1723703598960,33.90181115,141.72,141.69,0.05034338]
[1723703598961,0.05181115,141.72,141.69,0.05034338]
[1723703600362,0.05181115,141.72,141.7,3.5283]
[1723703600871,0.05181115,141.72,141.71,3.528]
[1723703603162,0.05181115,141.72,141.7,3.5282]
[1723703603966,0.05181115,141.72,141.71,3.528]
[1723703604358,1.2878,141.8,141.69,33.90034338]
[1723703604565,1.2878,141.8,141.71,33.85]
[1723703604764,1.2878,141.8,141.72,3.61486568]
[1723703604968,1.2878,141.8,141.76,3.5267]
[1723703605167,1.2878,141.8,141.73,5.52]
[1723703605370,33.85,141.83,141.74,4.93325493]
[1723703605569,37.3751,141.83,141.77,3.5263]
[1723703606070,0.05212121,141.78,141.77,3.5263]
[1723703606566,37.3751,141.83,141.76,3.5267]
[1723703606567,3.5253,141.82,141.76,3.5267]
[1723703606765,0.05093766,141.79,141.76,3.57626231]
[1723703606969,0.05093766,141.79,141.76,0.04956231]
[1723703607162,0.05093766,141.79,141.78,3.5263]
[1723703609764,0.05093766,141.79,141.76,0.04956231]
[1723703609972,33.85,141.78,141.76,0.04956231]
[1723703610766,35.0812,141.78,141.76,0.04956231]
[1723703611780,0.05093766,141.79,141.76,0.04956231]
[1723703614674,0.05093766,141.79,141.77,3.5263]
[1723703615472,0.05093766,141.79,141.78,3.5263]
[1723703616975,1.28,141.89,141.77,35.1431]
[1723703617281,35.13,141.89,141.78,33.85]
[1723703617585,35.13,141.89,141.79,3.44159966]
[1723703617775,1.28,141.89,141.8,33.85]
[1723703617971,1.28,141.89,141.84,3.5247]
[1723703618177,1.28,141.89,141.81,5.56]
[1723703618381,0.04806733,141.86,141.85,3.5243]
[1723703618874,36.4066,141.93,141.85,3.5243]
[1723703619072,3.5231,141.91,141.86,3.5243]
[1723703619275,0.04864465,141.87,141.86,3.5243]
[1723703619688,36.4066,141.93,141.86,3.5243]
[1723703620078,0.0512648,141.88,141.86,3.5243]
[1723703620579,3.5229,141.92,141.86,3.5243]
[1723703621081,0.0481375,141.88,141.86,3.57680827]
[1723703622281,0.0481375,141.88,141.86,0.05250827]
[1723703622881,0.0481375,141.88,141.86,3.57660827]
[1723703625674,0.0481375,141.88,141.86,0.05250827]
[1723703631089,33.85,141.87,141.76,5.54]
[1723703631393,33.85,141.84,141.76,5.54]
[1723703631587,2.5929,141.86,141.76,5.54]
[1723703631785,5.54,141.85,141.76,5.54]
[1723703631989,3.5251,141.83,141.78,3.5261]
[1723703632189,0.04651434,141.82,141.79,33.90085445]
[1723703633387,0.04651434,141.82,141.81,3.5255]
[1723703634594,41.8946,141.92,141.8,33.85]
[1723703634795,1.2644,141.92,141.83,33.85]
[1723703634992,3.5232,141.91,141.83,33.85]
[1723703635296,3.5232,141.91,141.85,3.5243]
[1723703635991,0.04819382,141.89,141.87,0.05082257]
[1723703638503,3.57189382,141.89,141.87,0.05082257]
[1723703638702,0.04819382,141.89,141.87,0.05082257]
[1723703641300,3.57179382,141.89,141.87,0.05082257]
[1723703641500,0.04819382,141.89,141.87,0.05082257]
[1723703641905,0.04819382,141.89,141.88,3.5238]
[1723703642599,0.04819382,141.89,141.87,0.05082257]
[1723703643704,0.04819382,141.89,141.8,5.54]
[1723703643901,27.07,141.88,141.8,5.54]
[1723703644706,30.5939,141.88,141.8,5.54]
[1723703645007,0.04792448,141.85,141.83,3.57407963]
[1723703645509,0.04792448,141.85,141.83,0.04917963]
[1723703645909,0.04792448,141.85,141.83,3.57407963]
[1723703646301,0.04792448,141.85,141.84,3.5248]
[1723703648003,0.04792448,141.85,141.84,7.01204094]
[1723703648402,3.5231,141.91,141.86,3.5241]
[1723703649004,33.8544,141.92,141.82,27.07]
[1723703649205,27.07,141.9,141.8,32.61]
[1723703649804,0.04559263,141.86,141.84,0.04521185]
[1723703650400,0.04559263,141.86,141.85,3.5245]
[1723703654202,0.04559263,141.86,141.84,0.04521185]
[1723703655815,3.5245,141.85,141.84,0.04521185]
[1723703656109,27.11559263,141.86,141.78,28.3909]
[1723703656309,30.63999263,141.86,141.78,28.3909]
[1723703657407,27.11559263,141.86,141.82,3.5252]
[1723703657605,0.04559263,141.86,141.81,0.05071211]
[1723703659113,0.04559263,141.86,141.84,3.5248]
[1723703659612,0.04559263,141.86,141.81,0.05071211]
[1723703660212,0.04559263,141.86,141.82,3.5252]
[1723703661011,0.04559263,141.86,141.81,0.05071211]
[1723703662309,3.57009263,141.86,141.81,0.05071211]
[1723703662511,0.04559263,141.86,141.81,0.05071211]
[1723703662914,3.56999263,141.86,141.81,3.57621211]
[1723703663109,0.04559263,141.86,141.81,0.05071211]
[1723703663416,3.525,141.83,141.81,0.05071211]
[1723703663712,27.11559263,141.86,141.81,0.05071211]
[1723703664215,28.38629263,141.86,141.81,0.05071211]
[1723703664710,1.31629263,141.86,141.81,0.05071211]
[1723703664909,0.04559263,141.86,141.81,0.05071211]
[1723703666308,0.04559263,141.86,141.82,27.07]
[1723703666613,27.11559263,141.86,141.81,0.05071211]
[1723703667117,3.5251,141.83,141.81,0.05071211]
[1723703667321,27.07,141.84,141.81,0.05071211]
[1723703667706,3.525,141.84,141.81,0.05071211]
[1723703667912,3.8661,141.85,141.81,0.05071211]
[1723703668217,3.5252,141.83,141.81,0.05071211]
[1723703668812,3.5249,141.84,141.81,0.05071211]
[1723703669011,3.8661,141.85,141.81,0.05071211]
[1723703669415,7.3908,141.85,141.81,3.57621211]
[1723703670015,7.3908,141.85,141.81,0.05071211]
[1723703670513,3.5248,141.84,141.81,0.05071211]
[1723703670820,3.8661,141.85,141.81,0.05071211]
[1723703671206,3.5253,141.82,141.81,0.05071211]
[1723703671716,30.5953,141.82,141.81,0.05071211]
[1723703676216,27.07,141.82,141.68,24.4751093]
[1723703676411,27.07,141.8,141.69,27.07]
[1723703676807,3.5264,141.78,141.74,3.5271]
[1723703677519,0.05323552,141.77,141.75,0.04848801]
[1723703677814,0.05323552,141.77,141.65,3.5293]
[1723703677815,3.61095856,141.77,141.65,3.5293]
[1723703678019,27.07,141.71,141.62,3.48367726]
[1723703678317,3.5292,141.67,141.62,7.01387726]
[1723703678517,27.07,141.67,141.62,3.48367726]
[1723703678718,32.45,141.67,141.61,2.6673]
[1723703678911,32.45,141.67,141.61,1.3373]
[1723703679108,3.58207283,141.66,141.63,0.05347225]
[1723703679310,5.43277283,141.66,141.63,0.05347225]
[1723703679515,3.5297,141.65,141.63,0.05347225]
[1723703679715,27.07,141.65,141.63,0.05347225]
[1723703680021,33.9,141.65,141.63,0.05347225]
[1723703680222,3.5302,141.63,141.58,3.5311]
[1723703681321,3.5302,141.63,141.59,0.05083551]
[1723703681624,0.05361642,141.62,141.59,3.58163551]
[1723703682025,0.05361642,141.62,141.59,0.05083551]
[1723703684533,3.58401642,141.62,141.59,0.05083551]
[1723703685423,3.5306,141.61,141.59,0.05083551]
[1723703686018,3.5308,141.6,141.59,0.05083551]
[1723703688028,0.05361642,141.62,141.59,0.05083551]
[1723703689319,0.05361642,141.62,141.61,3.5305]
[1723703691626,0.05361642,141.62,141.59,0.05083551]
[1723703692931,0.05361642,141.62,141.6,3.5306]
[1723703694233,0.05361642,141.62,141.59,3.58173551]
[1723703695332,0.05361642,141.62,141.59,0.05083551]
[1723703695629,33.9,141.7,141.59,0.05083551]
[1723703695630,5.4,141.72,141.6,33.9]
[1723703695820,5.4,141.72,141.66,3.5292]
[1723703695821,4.8749,141.71,141.66,3.5292]
[1723703696132,3.5281,141.71,141.63,39.3]
[1723703696430,33.9,141.73,141.66,3.5292]
[1723703696822,0.05056507,141.68,141.66,3.5823616]
[1723703697224,3.5284,141.7,141.66,3.5823616]
[1723703697527,0.05064619,141.68,141.67,3.529]
[1723703697931,3.5279,141.72,141.68,3.5287]
[1723703698124,0.04942289,141.69,141.66,0.0531616]
[1723703698329,0.04942289,141.69,141.65,3.57006706]
[1723703698523,0.04942289,141.69,141.68,3.5288]
[1723703699935,32.52,141.76,141.7,3.5281]
[1723703700142,27.12,141.76,141.68,5.4]
[1723703700439,230.70774342,141.78,141.65,5.4]
[1723703700440,27.12,141.72,141.65,5.4]
[1723703700632,27.12,141.72,141.64,2.6653]
[1723703700633,3.5283,141.7,141.66,3.5292]
[1723703700828,27.12,141.72,141.66,3.5292]
[1723703701333,0.05242231,141.7,141.68,0.04822413]
[1723703701738,0.05242231,141.7,141.69,3.5285]
[1723703702231,1.2316,141.78,141.71,3.5278]
[1723703702438,1.2316,141.78,141.69,5.4]
[1723703702439,1.2316,141.78,141.7,28.3773]
[1723703703139,1.2316,141.78,141.74,3.5272]
[1723703703140,3.5263,141.78,141.74,3.5272]
[1723703703339,3.5263,141.78,141.7,28.3773]
[1723703703541,0.04574361,141.75,141.73,3.57965428]
[1723703703734,0.04574361,141.75,141.73,0.05225428]
[1723703704333,0.04574361,141.75,141.74,3.5273]
[1723703704533,5.4,141.82,141.73,27.17225428]
[1723703704834,27.12,141.83,141.74,5.4]
[1723703705034,3.5259,141.8,141.75,3.5268]
[1723703705433,3.5259,141.8,141.74,5.4]
[1723703705630,3.5256,141.81,141.76,3.5266]
[1723703705831,0.0478152,141.78,141.76,3.5266]
[1723703706031,0.0478152,141.78,141.76,3.574892]
[1723703706233,27.12,141.83,141.76,3.574892]
[1723703706430,0.05122949,141.78,141.76,3.574892]
[1723703706835,27.12,141.81,141.76,3.5266]
[1723703707042,27.12,141.81,141.75,3.5269]
[1723703707231,0.0511054,141.78,141.76,0.04836641]
[1723703707638,0.0511054,141.78,141.76,3.57516641]
[1723703708033,0.0511054,141.78,141.76,0.04836641]
[1723703710648,0.0511054,141.78,141.77,3.5265]
[1723703711546,27.12,141.84,141.8,3.5257]
[1723703711932,27.12,141.84,141.76,2.64826641]
[1723703712143,27.12,141.84,141.79,3.526]
[1723703712344,27.12,141.84,141.76,2.5999]
[1723703712744,27.12,141.84,141.8,3.5257]
[1723703713338,0.04978632,141.81,141.8,3.5257]
[1723703713933,27.12,141.86,141.81,3.5253]
[1723703714138,3.5246,141.85,141.81,3.5253]
[1723703714337,0.05430786,141.82,141.79,32.64]
[1723703714539,0.05430786,141.82,141.81,3.5255]
[1723703716040,0.05430786,141.82,141.8,3.576288]
[1723703716347,0.05430786,141.82,141.8,0.050688]
[1723703716534,0.05430786,141.82,141.81,3.5255]
[1723703717938,0.05430786,141.82,141.8,3.576288]
[1723703718351,0.05430786,141.82,141.8,0.050688]
[1723703719943,3.57980786,141.82,141.8,0.050688]
[1723703720447,0.05430786,141.82,141.8,0.050688]
[1723703720837,3.5255,141.81,141.8,0.050688]
[1723703721143,27.12,141.81,141.73,5.52]
[1723703721344,27.12,141.81,141.74,3.5271]
[1723703721536,27.12,141.79,141.71,1.2382]
[1723703721741,27.12,141.79,141.7,5.52]
[1723703722549,0.051173,141.76,141.73,0.04575926]
[1723703724643,0.051173,141.76,141.73,3.57315926]
[1723703725649,0.051173,141.76,141.73,0.04575926]
[1723703727957,0.051173,141.76,141.73,3.57315926]
[1723703728360,0.051173,141.76,141.73,0.04575926]
[1723703728855,3.5273,141.74,141.73,0.04575926]
[1723703729252,3.5278,141.72,141.66,32.64]
[1723703729452,3.5278,141.72,141.66,5.52]
[1723703730153,27.12,141.72,141.62,36.4401]
[1723703730553,27.12,141.72,141.65,3.5293]
[1723703730554,3.5284,141.7,141.65,3.5293]
[1723703730753,0.0487804,141.68,141.66,0.05104562]
[1723703731156,0.0487804,141.68,141.66,3.58024562]
[1723703731454,0.0487804,141.68,141.66,0.05104562]
[1723703733856,0.0487804,141.68,141.66,3.58014562]
[1723703734664,0.0487804,141.68,141.66,0.05104562]
[1723703734865,0.0487804,141.68,141.67,3.529]
[1723703738966,2.5591,141.78,141.67,27.12]
[1723703739167,2.5591,141.78,141.65,30.65779911]
[1723703739168,6.0856,141.78,141.71,27.12]
[1723703739370,1.3224,141.78,141.75,3.527]
[1723703739570,1.3224,141.78,141.71,27.12]
[1723703739767,4.8487,141.78,141.71,27.12]
[1723703739971,1.3224,141.78,141.71,27.12]
[1723703740376,0.0509309,141.76,141.73,0.04992512]
[1723703740772,0.0509309,141.76,141.74,3.5271]
[1723703740974,0.0509309,141.76,141.73,0.04992512]
[1723703742279,3.5777309,141.76,141.73,0.04992512]
[1723703742674,3.5271,141.75,141.73,0.04992512]
[1723703742877,0.0509309,141.76,141.73,0.04992512]
[1723703743278,27.12,141.74,141.65,27.12]
[1723703743480,27.12,141.72,141.63,27.12]
[1723703743873,3.5283,141.7,141.66,3.5292]
[1723703744077,27.12,141.72,141.66,3.5292]
[1723703744283,3.5282,141.71,141.66,3.5292]
[1723703744488,27.12,141.72,141.63,27.12]
[1723703744679,27.12,141.7,141.59,29.7179]
[1723703744982,27.12,141.67,141.6,3.5307]
[1723703745386,2.6257,141.66,141.6,3.5307]
[1723703745580,3.5295,141.65,141.6,3.5307]